[Event "Titled Tuesday Blitz June 28 Late 2022"]
[White "Vlassov, Nikolai"]
[Black "Fernandez Sanchez, Mario Andres"]
[WhiteFideId "4103360"]
[BlackFideId "6501621"]
[WhiteElo "2407"]
[BlackElo "2057"]
[Result "1-0"]
[Round "01"]
[TimeControl "180+1"]
[Date "2022.06.29"]
[WhiteClock "0:00:14"]
[BlackClock "0:00:10"]

1. e4 {[%clk 0:02:45]}  c6 {[%clk 0:02:59]} 2. d4 {[%clk 0:02:44]}  d5 {[%clk 0:02:59]} 3. e5 {[%clk 0:02:44]}  c5 {[%clk 0:02:59]} 4. dxc5 {[%clk 0:02:44]}  Nc6 {[%clk 0:03:00]} 5. Bb5 {[%clk 0:02:43]}  e6 {[%clk 0:02:59]} 6. Be3 {[%clk 0:02:43]}  Ne7 {[%clk 0:02:58]} 7. Nf3 {[%clk 0:02:43]}  Nf5 {[%clk 0:02:56]} 8. Bd4 {[%clk 0:02:43]}  Bd7 {[%clk 0:02:51]} 9. Bxc6 {[%clk 0:02:42]}  Bxc6 {[%clk 0:02:45]} 10. O-O {[%clk 0:02:40]}  a5 {[%clk 0:02:32]} 11. c3 {[%clk 0:02:39]}  a4 {[%clk 0:02:31]} 12. Nbd2 {[%clk 0:02:36]}  Qa5 {[%clk 0:02:31]} 13. b4 {[%clk 0:02:35]}  axb3 {[%clk 0:02:31]} 14. axb3 {[%clk 0:02:34]}  Qxa1 {[%clk 0:02:27]} 15. Qxa1 {[%clk 0:02:34]}  Rxa1 {[%clk 0:02:28]} 16. Rxa1 {[%clk 0:02:35]}  Be7 {[%clk 0:02:27]} 17. Ra8+ {[%clk 0:02:32]}  Bd8 {[%clk 0:02:27]} 18. b4 {[%clk 0:02:26]}  O-O {[%clk 0:02:27]} 19. g4 {[%clk 0:02:20]}  Ne7 {[%clk 0:02:14]} 20. Nb3 {[%clk 0:02:10]}  Bb5 {[%clk 0:02:13]} 21. Be3 {[%clk 0:02:05]}  Bc4 {[%clk 0:02:02]} 22. Nfd4 {[%clk 0:01:56]}  Bc7 {[%clk 0:01:58]} 23. Rxf8+ {[%clk 0:01:44]}  Kxf8 {[%clk 0:01:59]} 24. f4 {[%clk 0:01:43]}  g5 {[%clk 0:01:49]} 25. fxg5 {[%clk 0:01:35]}  Bxe5 {[%clk 0:01:45]} 26. Na5 {[%clk 0:01:34]}  Ba6 {[%clk 0:01:35]} 27. h4 {[%clk 0:01:13]}  Ng6 {[%clk 0:01:20]} 28. h5 {[%clk 0:01:10]}  Ne7 {[%clk 0:01:20]} 29. Kf2 {[%clk 0:01:04]}  Bc7 {[%clk 0:01:16]} 30. Nab3 {[%clk 0:01:00]}  Bc4 {[%clk 0:01:10]} 31. Nd2 {[%clk 0:00:59]}  Bd3 {[%clk 0:01:10]} 32. Kf3 {[%clk 0:00:57]}  e5 {[%clk 0:01:09]} 33. N4b3 {[%clk 0:00:53]}  Nc6 {[%clk 0:01:07]} 34. Bg1 {[%clk 0:00:43]}  e4+ {[%clk 0:01:04]} 35. Ke3 {[%clk 0:00:40]}  Ne5 {[%clk 0:01:04]} 36. Kd4 {[%clk 0:00:36]}  Nxg4 {[%clk 0:00:57]} 37. Kxd5 {[%clk 0:00:35]}  e3 {[%clk 0:00:58]} 38. Nf3 {[%clk 0:00:35]}  Bg3 {[%clk 0:00:51]} 39. Nc1 {[%clk 0:00:24]}  Bb5 {[%clk 0:00:47]} 40. Nd4 {[%clk 0:00:17]}  Bc6+ {[%clk 0:00:38]} 41. Nxc6 {[%clk 0:00:15]}  bxc6+ {[%clk 0:00:39]} 42. Kxc6 {[%clk 0:00:15]}  Bf2 {[%clk 0:00:40]} 43. Ne2 {[%clk 0:00:15]}  Ne5+ {[%clk 0:00:35]} 44. Kd5 {[%clk 0:00:14]}  Nf3 {[%clk 0:00:34]} 45. Bxf2 {[%clk 0:00:14]}  exf2 {[%clk 0:00:35]} 46. Ng3 {[%clk 0:00:15]}  Nxg5 {[%clk 0:00:28]} 47. b5 {[%clk 0:00:15]}  Ke8 {[%clk 0:00:28]} 48. b6 {[%clk 0:00:15]}  Kd8 {[%clk 0:00:28]} 49. c6 {[%clk 0:00:16]}  Kc8 {[%clk 0:00:27]} 50. Ke5 {[%clk 0:00:16]}  h6 {[%clk 0:00:19]} 51. Nf1 {[%clk 0:00:15]}  Nf3+ {[%clk 0:00:17]} 52. Kf6 {[%clk 0:00:15]}  Ng5 {[%clk 0:00:17]} 53. c4 {[%clk 0:00:13]}  Kb8 {[%clk 0:00:16]} 54. Kg7 {[%clk 0:00:12]}  Ne4 {[%clk 0:00:15]} 55. Kxh6 {[%clk 0:00:11]}  Nd6 {[%clk 0:00:16]} 56. c5 {[%clk 0:00:11]}  Ne4 {[%clk 0:00:16]} 57. c7+ {[%clk 0:00:11]}  Kb7 {[%clk 0:00:16]} 58. Kg7 {[%clk 0:00:12]}  Nxc5 {[%clk 0:00:16]} 59. h6 {[%clk 0:00:12]}  Ne6+ {[%clk 0:00:14]} 60. Kxf7 {[%clk 0:00:12]}  Ng5+ {[%clk 0:00:14]} 61. Kf6 {[%clk 0:00:13]}  Nh7+ {[%clk 0:00:13]} 62. Kg7 {[%clk 0:00:13]}  Ng5 {[%clk 0:00:13]} 63. h7 {[%clk 0:00:14]}  Nxh7 {[%clk 0:00:10]} 64. Kxh7 {[%clk 0:00:14]} 1-0


[Site "https://www.chess.com"]

[Event "Titled Tuesday Blitz June 28 Late 2022"]
[White "Xu, Yi"]
[Black "Mendez Fortes, Eduardo Jesus"]
[WhiteFideId "8605564"]
[BlackFideId "3502376"]
[WhiteElo "2471"]
[BlackElo "2321"]
[Result "1-0"]
[Round "01"]
[TimeControl "180+1"]
[Date "2022.06.28"]
[WhiteClock "0:00:08"]
[BlackClock "0:00:08"]

1. e4 {[%clk 0:03:00]}  e5 {[%clk 0:02:56]} 2. Nf3 {[%clk 0:02:59]}  Nc6 {[%clk 0:02:51]} 3. Bc4 {[%clk 0:02:59]}  Nf6 {[%clk 0:02:51]} 4. d3 {[%clk 0:02:59]}  Bc5 {[%clk 0:02:51]} 5. O-O {[%clk 0:02:58]}  d6 {[%clk 0:02:52]} 6. c3 {[%clk 0:02:58]}  O-O {[%clk 0:02:51]} 7. h3 {[%clk 0:02:55]}  Bb6 {[%clk 0:02:52]} 8. Nbd2 {[%clk 0:02:53]}  Ne7 {[%clk 0:02:52]} 9. Re1 {[%clk 0:02:43]}  Ng6 {[%clk 0:02:46]} 10. d4 {[%clk 0:02:38]}  exd4 {[%clk 0:02:44]} 11. cxd4 {[%clk 0:02:36]}  d5 {[%clk 0:02:44]} 12. exd5 {[%clk 0:02:32]}  Nxd5 {[%clk 0:02:45]} 13. Ne4 {[%clk 0:02:21]}  c6 {[%clk 0:02:44]} 14. Bg5 {[%clk 0:02:17]}  f6 {[%clk 0:02:40]} 15. Be3 {[%clk 0:02:07]}  Be6 {[%clk 0:02:14]} 16. Nc5 {[%clk 0:02:03]}  Bxc5 {[%clk 0:02:12]} 17. dxc5 {[%clk 0:02:03]}  Bf7 {[%clk 0:02:11]} 18. Bd2 {[%clk 0:01:48]}  Qc7 {[%clk 0:02:08]} 19. Qb3 {[%clk 0:01:45]}  Rad8 {[%clk 0:02:07]} 20. Qa4 {[%clk 0:01:38]}  b5 {[%clk 0:02:00]} 21. cxb6 {[%clk 0:01:36]}  axb6 {[%clk 0:02:00]} 22. Qc2 {[%clk 0:01:34]}  c5 {[%clk 0:01:54]} 23. Rad1 {[%clk 0:01:32]}  Rfe8 {[%clk 0:01:46]} 24. a3 {[%clk 0:01:27]}  Ndf4 {[%clk 0:01:41]} 25. Rxe8+ {[%clk 0:01:21]}  Rxe8 {[%clk 0:01:40]} 26. Bxf4 {[%clk 0:01:21]}  Nxf4 {[%clk 0:01:37]} 27. Bxf7+ {[%clk 0:01:18]}  Qxf7 {[%clk 0:01:38]} 28. Rd6 {[%clk 0:01:14]}  Re6 {[%clk 0:00:54]} 29. Rd8+ {[%clk 0:01:06]}  Re8 {[%clk 0:00:54]} 30. Rxe8+ {[%clk 0:01:02]}  Qxe8 {[%clk 0:00:53]} 31. Qc4+ {[%clk 0:01:02]}  Ne6 {[%clk 0:00:53]} 32. Qd5 {[%clk 0:00:53]}  Qe7 {[%clk 0:00:42]} 33. Qc6 {[%clk 0:00:50]}  Nf4 {[%clk 0:00:19]} 34. Qxb6 {[%clk 0:00:45]}  g5 {[%clk 0:00:19]} 35. a4 {[%clk 0:00:40]}  Kf7 {[%clk 0:00:14]} 36. a5 {[%clk 0:00:38]}  Qe2 {[%clk 0:00:14]} 37. Qb7+ {[%clk 0:00:30]}  Kg6 {[%clk 0:00:13]} 38. a6 {[%clk 0:00:27]}  Nd3 {[%clk 0:00:11]} 39. a7 {[%clk 0:00:20]}  Qxf2+ {[%clk 0:00:11]} 40. Kh2 {[%clk 0:00:20]}  Nf4 {[%clk 0:00:12]} 41. Ne5+ {[%clk 0:00:15]}  fxe5 {[%clk 0:00:09]} 42. a8=Q {[%clk 0:00:14]}  Ne2 {[%clk 0:00:08]} 43. Qe4+ {[%clk 0:00:13]}  Kh6 {[%clk 0:00:08]} 44. Qa6+ {[%clk 0:00:10]}  Kg7 {[%clk 0:00:08]} 45. Qeb7+ {[%clk 0:00:08]}  Kg8 {[%clk 0:00:08]} 46. Qaa8+ {[%clk 0:00:08]} 1-0


[Site "https://www.chess.com"]

[Event "Titled Tuesday Blitz June 28 Late 2022"]
[White "Yuan, Qingyu"]
[Black "Hoffmann, Asa"]
[WhiteFideId "8609772"]
[BlackFideId "2001470"]
[WhiteElo "2740"]
[BlackElo "2406"]
[Result "1-0"]
[Round "01"]
[TimeControl "180+1"]
[Date "2022.06.29"]
[WhiteClock "0:00:09"]
[BlackClock "0:00:01"]

1. e4 {[%clk 0:03:00]}  d6 {[%clk 0:02:58]} 2. d4 {[%clk 0:03:00]}  Nf6 {[%clk 0:02:56]} 3. Nc3 {[%clk 0:03:00]}  c6 {[%clk 0:02:53]} 4. a4 {[%clk 0:02:58]}  Qa5 {[%clk 0:02:52]} 5. Bd2 {[%clk 0:02:55]}  e5 {[%clk 0:02:51]} 6. Nf3 {[%clk 0:02:53]}  Bg4 {[%clk 0:02:48]} 7. dxe5 {[%clk 0:02:52]}  dxe5 {[%clk 0:02:48]} 8. h3 {[%clk 0:02:50]}  Bh5 {[%clk 0:02:43]} 9. g4 {[%clk 0:02:37]}  Bg6 {[%clk 0:02:43]} 10. Nd5 {[%clk 0:02:37]}  Qd8 {[%clk 0:02:41]} 11. Nxf6+ {[%clk 0:02:37]}  gxf6 {[%clk 0:02:27]} 12. Qe2 {[%clk 0:02:16]}  Nd7 {[%clk 0:02:22]} 13. Nh4 {[%clk 0:02:07]}  Bc5 {[%clk 0:02:11]} 14. Bg2 {[%clk 0:02:02]}  Qe7 {[%clk 0:02:09]} 15. a5 {[%clk 0:01:58]}  a6 {[%clk 0:02:08]} 16. c3 {[%clk 0:01:56]}  O-O-O {[%clk 0:02:00]} 17. b4 {[%clk 0:01:53]}  Ba7 {[%clk 0:01:59]} 18. Be3 {[%clk 0:01:45]}  Bxe3 {[%clk 0:01:55]} 19. Qxe3 {[%clk 0:01:46]}  Kb8 {[%clk 0:01:55]} 20. O-O {[%clk 0:01:46]}  Nf8 {[%clk 0:01:54]} 21. Rad1 {[%clk 0:01:44]}  Ne6 {[%clk 0:01:54]} 22. Bf3 {[%clk 0:01:15]}  Nf4 {[%clk 0:01:49]} 23. Kh2 {[%clk 0:01:15]}  Rxd1 {[%clk 0:01:47]} 24. Rxd1 {[%clk 0:01:15]}  Rd8 {[%clk 0:01:46]} 25. Ng2 {[%clk 0:00:58]}  Rxd1 {[%clk 0:01:41]} 26. Bxd1 {[%clk 0:00:58]}  Qd6 {[%clk 0:01:24]} 27. Be2 {[%clk 0:00:39]}  Ne6 {[%clk 0:01:06]} 28. h4 {[%clk 0:00:34]}  h5 {[%clk 0:00:56]} 29. gxh5 {[%clk 0:00:33]}  Bh7 {[%clk 0:00:56]} 30. Bf3 {[%clk 0:00:29]}  Qf8 {[%clk 0:00:49]} 31. Bg4 {[%clk 0:00:27]}  Qg7 {[%clk 0:00:41]} 32. f3 {[%clk 0:00:26]}  Nc7 {[%clk 0:00:28]} 33. Qc5 {[%clk 0:00:18]}  Nb5 {[%clk 0:00:24]} 34. Ne3 {[%clk 0:00:14]}  Qg8 {[%clk 0:00:19]} 35. Qe7 {[%clk 0:00:10]}  Ka7 {[%clk 0:00:08]} 36. Nc4 {[%clk 0:00:11]}  Nxc3 {[%clk 0:00:06]} 37. Nd6 {[%clk 0:00:11]}  Qb8 {[%clk 0:00:05]} 38. Nc8+ {[%clk 0:00:08]}  Ka8 {[%clk 0:00:04]} 39. Nb6+ {[%clk 0:00:09]}  Ka7 {[%clk 0:00:04]} 40. Qxf7 {[%clk 0:00:09]}  Bg8 {[%clk 0:00:02]} 41. Qxf6 {[%clk 0:00:09]}  Nb5 {[%clk 0:00:01]} 42. h6 {[%clk 0:00:09]}  Nd4 {[%clk 0:00:01]} 43. Qe7 {[%clk 0:00:09]} 1-0


[Site "https://www.chess.com"]

[Event "Titled Tuesday Blitz June 28 Late 2022"]
[White "Zhu, Jiner"]
[Black "Xie, Bryan"]
[WhiteFideId "8608059"]
[BlackFideId "30941296"]
[WhiteElo "2281"]
[BlackElo "1899"]
[Result "1-0"]
[Round "01"]
[TimeControl "180+1"]
[Date "2022.06.29"]
[WhiteClock "0:00:08"]
[BlackClock "0:00:04"]

1. e4 {[%clk 0:03:00]}  c5 {[%clk 0:02:57]} 2. Nf3 {[%clk 0:03:00]}  e6 {[%clk 0:02:55]} 3. d4 {[%clk 0:03:00]}  cxd4 {[%clk 0:02:56]} 4. Nxd4 {[%clk 0:03:00]}  Nc6 {[%clk 0:02:56]} 5. Nc3 {[%clk 0:03:00]}  Qc7 {[%clk 0:02:56]} 6. g4 {[%clk 0:02:59]}  a6 {[%clk 0:02:38]} 7. Be3 {[%clk 0:02:57]}  b5 {[%clk 0:02:37]} 8. Nxc6 {[%clk 0:02:41]}  Qxc6 {[%clk 0:02:29]} 9. Qd2 {[%clk 0:02:29]}  b4 {[%clk 0:02:09]} 10. Ne2 {[%clk 0:02:29]}  Qxe4 {[%clk 0:02:05]} 11. Rg1 {[%clk 0:02:24]}  Qc6 {[%clk 0:02:01]} 12. O-O-O {[%clk 0:02:16]}  Bb7 {[%clk 0:01:51]} 13. Nf4 {[%clk 0:01:58]}  Nf6 {[%clk 0:01:49]} 14. Bg2 {[%clk 0:01:34]}  d5 {[%clk 0:01:49]} 15. Nh5 {[%clk 0:01:33]}  Nxg4 {[%clk 0:01:33]} 16. Bd4 {[%clk 0:01:32]}  O-O-O {[%clk 0:01:19]} 17. h3 {[%clk 0:01:32]}  Nh6 {[%clk 0:00:56]} 18. Nxg7 {[%clk 0:01:31]}  e5 {[%clk 0:00:14]} 19. Bxe5 {[%clk 0:01:27]}  f6 {[%clk 0:00:14]} 20. Bf4 {[%clk 0:01:07]}  Bxg7 {[%clk 0:00:13]} 21. Bxh6 {[%clk 0:01:07]}  Bxh6 {[%clk 0:00:13]} 22. Qxh6 {[%clk 0:01:08]}  Kb8 {[%clk 0:00:10]} 23. Qf4+ {[%clk 0:01:07]}  Ka8 {[%clk 0:00:09]} 24. Qxb4 {[%clk 0:01:05]}  Rhg8 {[%clk 0:00:09]} 25. Bf3 {[%clk 0:00:58]}  Rxg1 {[%clk 0:00:08]} 26. Rxg1 {[%clk 0:00:59]}  Qe6 {[%clk 0:00:07]} 27. Bg4 {[%clk 0:00:22]}  Qe5 {[%clk 0:00:06]} 28. Rd1 {[%clk 0:00:20]}  d4 {[%clk 0:00:05]} 29. Kb1 {[%clk 0:00:20]}  Rb8 {[%clk 0:00:03]} 30. Qxd4 {[%clk 0:00:18]}  Qg5 {[%clk 0:00:03]} 31. a3 {[%clk 0:00:17]}  Qa5 {[%clk 0:00:01]} 32. Ka1 {[%clk 0:00:15]}  Bc6 {[%clk 0:00:02]} 33. Be6 {[%clk 0:00:15]}  Qc7 {[%clk 0:00:02]} 34. Bd5 {[%clk 0:00:14]}  Qd6 {[%clk 0:00:02]} 35. Bxc6+ {[%clk 0:00:14]}  Qxc6 {[%clk 0:00:02]} 36. Qd5 {[%clk 0:00:15]}  Qxd5 {[%clk 0:00:02]} 37. Rxd5 {[%clk 0:00:16]}  Rg8 {[%clk 0:00:02]} 38. Rf5 {[%clk 0:00:16]}  Rg1+ {[%clk 0:00:02]} 39. Ka2 {[%clk 0:00:16]}  Rh1 {[%clk 0:00:03]} 40. Rh5 {[%clk 0:00:15]}  Rf1 {[%clk 0:00:03]} 41. Rxh7 {[%clk 0:00:13]}  Rxf2 {[%clk 0:00:03]} 42. c4 {[%clk 0:00:14]}  Rh2 {[%clk 0:00:04]} 43. Rf7 {[%clk 0:00:13]}  Rxh3 {[%clk 0:00:04]} 44. Rxf6 {[%clk 0:00:14]}  Kb7 {[%clk 0:00:05]} 45. c5 {[%clk 0:00:11]}  Rg3 {[%clk 0:00:03]} 46. Rb6+ {[%clk 0:00:11]}  Ka7 {[%clk 0:00:04]} 47. Rb3 {[%clk 0:00:11]}  Rg5 {[%clk 0:00:03]} 48. Rc3 {[%clk 0:00:11]}  Kb7 {[%clk 0:00:04]} 49. b4 {[%clk 0:00:10]}  Kc7 {[%clk 0:00:05]} 50. Kb3 {[%clk 0:00:11]}  Kc6 {[%clk 0:00:05]} 51. Re3 {[%clk 0:00:10]}  Rg1 {[%clk 0:00:04]} 52. Re6+ {[%clk 0:00:10]}  Kb7 {[%clk 0:00:04]} 53. Re7+ {[%clk 0:00:10]}  Kc6 {[%clk 0:00:03]} 54. Ra7 {[%clk 0:00:10]}  Rg3+ {[%clk 0:00:02]} 55. Ka4 {[%clk 0:00:10]}  Kd5 {[%clk 0:00:01]} 56. Rxa6 {[%clk 0:00:09]}  Rc3 {[%clk 0:00:02]} 57. Rd6+ {[%clk 0:00:10]}  Ke5 {[%clk 0:00:02]} 58. Rd1 {[%clk 0:00:08]}  Ke6 {[%clk 0:00:02]} 59. Kb5 {[%clk 0:00:07]}  Rxa3 {[%clk 0:00:02]} 60. c6 {[%clk 0:00:08]}  Rc3 {[%clk 0:00:03]} 61. Kb6 {[%clk 0:00:08]}  Ke7 {[%clk 0:00:04]} 62. b5 {[%clk 0:00:08]} 1-0


[Site "https://www.chess.com"]

[Event "Titled Tuesday Blitz June 28 Late 2022"]
[White "Abdi, Farzad"]
[Black "Al-Tarboush, Ward"]
[WhiteFideId "2076829"]
[BlackFideId "7601450"]
[WhiteElo "2332"]
[BlackElo "2249"]
[Result "0-1"]
[Round "02"]
[TimeControl "180+1"]
[Date "2022.06.29"]
[WhiteClock "0:02:15"]
[BlackClock "0:02:26"]

1. e4 {[%clk 0:03:00]}  e6 {[%clk 0:02:59]} 2. d4 {[%clk 0:03:00]}  d5 {[%clk 0:02:59]} 3. Nc3 {[%clk 0:03:01]}  Nf6 {[%clk 0:02:59]} 4. Bg5 {[%clk 0:03:00]}  dxe4 {[%clk 0:02:59]} 5. Nxe4 {[%clk 0:02:59]}  Be7 {[%clk 0:02:59]} 6. Bxf6 {[%clk 0:02:59]}  gxf6 {[%clk 0:03:00]} 7. Nf3 {[%clk 0:02:59]}  f5 {[%clk 0:03:01]} 8. Ng3 {[%clk 0:02:58]}  c5 {[%clk 0:03:00]} 9. dxc5 {[%clk 0:02:57]}  Qxd1+ {[%clk 0:03:00]} 10. Rxd1 {[%clk 0:02:56]}  Bxc5 {[%clk 0:03:01]} 11. Bb5+ {[%clk 0:02:54]}  Bd7 {[%clk 0:03:00]} 12. Bxd7+ {[%clk 0:02:53]}  Nxd7 {[%clk 0:03:01]} 13. O-O {[%clk 0:02:52]}  O-O-O {[%clk 0:03:00]} 14. Rd3 {[%clk 0:02:48]}  Be7 {[%clk 0:02:54]} 15. Rfd1 {[%clk 0:02:48]}  Nc5 {[%clk 0:02:47]} 16. Rxd8+ {[%clk 0:02:47]}  Rxd8 {[%clk 0:02:48]} 17. Rxd8+ {[%clk 0:02:47]}  Kxd8 {[%clk 0:02:47]} 18. Ne5 {[%clk 0:02:47]}  f6 {[%clk 0:02:44]} 19. Nd3 {[%clk 0:02:44]}  Ne4 {[%clk 0:02:41]} 20. Nxe4 {[%clk 0:02:43]}  fxe4 {[%clk 0:02:42]} 21. Nf4 {[%clk 0:02:42]}  Kd7 {[%clk 0:02:42]} 22. Kf1 {[%clk 0:02:42]}  Bd6 {[%clk 0:02:36]} 23. Nh5 {[%clk 0:02:33]}  Be5 {[%clk 0:02:35]} 24. b3 {[%clk 0:02:31]}  Kd6 {[%clk 0:02:33]} 25. Ke2 {[%clk 0:02:32]}  Kc5 {[%clk 0:02:33]} 26. g3 {[%clk 0:02:28]}  f5 {[%clk 0:02:32]} 27. Kd2 {[%clk 0:02:24]}  Kb4 {[%clk 0:02:31]} 28. a4 {[%clk 0:02:18]}  a6 {[%clk 0:02:27]} 29. Kd1 {[%clk 0:02:18]}  Kc3 {[%clk 0:02:26]} 30. Ng7 {[%clk 0:02:15]}  Bxg7 {[%clk 0:02:26]} 0-1


[Site "https://www.chess.com"]

[Event "Titled Tuesday Blitz June 28 Late 2022"]
[White "Acosta, Pablo Ismael"]
[Black "Golubev, Mikhail"]
[WhiteFideId "124311"]
[BlackFideId "14100983"]
[WhiteElo "2313"]
[BlackElo "2374"]
[Result "1-0"]
[Round "02"]
[TimeControl "180+1"]
[Date "2022.06.28"]
[WhiteClock "0:01:24"]
[BlackClock "0:00:03"]

1. d4 {[%clk 0:03:00]}  Nf6 {[%clk 0:02:59]} 2. c4 {[%clk 0:03:01]}  g6 {[%clk 0:02:58]} 3. Nf3 {[%clk 0:03:01]}  Bg7 {[%clk 0:02:59]} 4. g3 {[%clk 0:03:01]}  O-O {[%clk 0:02:59]} 5. Bg2 {[%clk 0:03:02]}  d6 {[%clk 0:03:00]} 6. O-O {[%clk 0:03:03]}  Nbd7 {[%clk 0:03:00]} 7. Nc3 {[%clk 0:03:03]}  e5 {[%clk 0:03:00]} 8. e4 {[%clk 0:03:04]}  Re8 {[%clk 0:03:00]} 9. Re1 {[%clk 0:03:04]}  exd4 {[%clk 0:02:56]} 10. Nxd4 {[%clk 0:03:04]}  c6 {[%clk 0:02:55]} 11. h3 {[%clk 0:03:03]}  Qb6 {[%clk 0:02:53]} 12. Nb3 {[%clk 0:02:45]}  Ne5 {[%clk 0:02:43]} 13. Be3 {[%clk 0:02:44]}  Qb4 {[%clk 0:02:19]} 14. Bf1 {[%clk 0:02:30]}  Nxc4 {[%clk 0:02:07]} 15. Bd4 {[%clk 0:02:21]}  Nxb2 {[%clk 0:01:35]} 16. Qf3 {[%clk 0:02:20]}  Nh5 {[%clk 0:00:58]} 17. Bxg7 {[%clk 0:02:18]}  Nxg7 {[%clk 0:00:59]} 18. e5 {[%clk 0:02:04]}  d5 {[%clk 0:00:38]} 19. Rab1 {[%clk 0:02:03]}  Nc4 {[%clk 0:00:32]} 20. Nd4 {[%clk 0:01:45]}  Qc5 {[%clk 0:00:31]} 21. Nb3 {[%clk 0:01:45]}  Qe7 {[%clk 0:00:30]} 22. Bxc4 {[%clk 0:01:43]}  dxc4 {[%clk 0:00:31]} 23. Nd2 {[%clk 0:01:42]}  Bf5 {[%clk 0:00:25]} 24. Rbc1 {[%clk 0:01:35]}  Rad8 {[%clk 0:00:20]} 25. Nxc4 {[%clk 0:01:35]}  Rd3 {[%clk 0:00:18]} 26. Qe2 {[%clk 0:01:34]}  Red8 {[%clk 0:00:17]} 27. Nd6 {[%clk 0:01:33]}  R3xd6 {[%clk 0:00:12]} 28. exd6 {[%clk 0:01:32]}  Qxd6 {[%clk 0:00:11]} 29. Ne4 {[%clk 0:01:31]}  Bxe4 {[%clk 0:00:11]} 30. Qxe4 {[%clk 0:01:32]}  Ne6 {[%clk 0:00:11]} 31. Rb1 {[%clk 0:01:32]}  Qc7 {[%clk 0:00:11]} 32. h4 {[%clk 0:01:31]}  Rd5 {[%clk 0:00:10]} 33. Qg4 {[%clk 0:01:29]}  h5 {[%clk 0:00:09]} 34. Qf3 {[%clk 0:01:29]}  Rf5 {[%clk 0:00:09]} 35. Qd3 {[%clk 0:01:28]}  b6 {[%clk 0:00:06]} 36. Rbc1 {[%clk 0:01:27]}  c5 {[%clk 0:00:06]} 37. Qe4 {[%clk 0:01:25]}  Nd4 {[%clk 0:00:06]} 38. Qxd4 {[%clk 0:01:25]}  cxd4 {[%clk 0:00:02]} 39. Rxc7 {[%clk 0:01:25]}  Ra5 {[%clk 0:00:03]} 40. Ree7 {[%clk 0:01:24]} 1-0


[Site "https://www.chess.com"]

[Event "Titled Tuesday Blitz June 28 Late 2022"]
[White "Adla, Diego"]
[Black "Jobava, Baadur"]
[WhiteFideId "100072"]
[BlackFideId "13601520"]
[WhiteElo "2377"]
[BlackElo "2617"]
[Result "0-1"]
[Round "02"]
[TimeControl "180+1"]
[Date "2022.06.28"]
[WhiteClock "0:00:01"]
[BlackClock "0:02:05"]

1. e4 {[%clk 0:03:00]}  e6 {[%clk 0:03:00]} 2. d4 {[%clk 0:02:59]}  d5 {[%clk 0:03:01]} 3. exd5 {[%clk 0:02:59]}  exd5 {[%clk 0:03:02]} 4. Nf3 {[%clk 0:02:59]}  Bg4 {[%clk 0:03:01]} 5. h3 {[%clk 0:02:58]}  Bxf3 {[%clk 0:03:00]} 6. Qxf3 {[%clk 0:02:58]}  c6 {[%clk 0:03:01]} 7. Bd3 {[%clk 0:02:57]}  Bd6 {[%clk 0:03:01]} 8. O-O {[%clk 0:02:53]}  Qf6 {[%clk 0:03:00]} 9. Re1+ {[%clk 0:02:45]}  Kf8 {[%clk 0:03:01]} 10. Qg4 {[%clk 0:02:27]}  Qd8 {[%clk 0:03:01]} 11. Bg5 {[%clk 0:02:21]}  Qc7 {[%clk 0:02:56]} 12. c4 {[%clk 0:02:18]}  dxc4 {[%clk 0:02:54]} 13. Bxc4 {[%clk 0:02:17]}  Nd7 {[%clk 0:02:54]} 14. Nc3 {[%clk 0:02:13]}  Ngf6 {[%clk 0:02:54]} 15. Qf5 {[%clk 0:02:12]}  h6 {[%clk 0:02:53]} 16. Bxf6 {[%clk 0:01:57]}  Nxf6 {[%clk 0:02:54]} 17. d5 {[%clk 0:01:57]}  Rd8 {[%clk 0:02:44]} 18. Rad1 {[%clk 0:01:55]}  Qa5 {[%clk 0:02:33]} 19. Qf3 {[%clk 0:01:36]}  b5 {[%clk 0:02:34]} 20. Bb3 {[%clk 0:01:15]}  c5 {[%clk 0:02:34]} 21. a3 {[%clk 0:00:58]}  a6 {[%clk 0:02:23]} 22. Bc2 {[%clk 0:00:58]}  Qc7 {[%clk 0:02:22]} 23. Re2 {[%clk 0:00:41]}  Bh2+ {[%clk 0:02:14]} 24. Kf1 {[%clk 0:00:38]}  Qf4 {[%clk 0:02:15]} 25. Qd3 {[%clk 0:00:35]}  c4 {[%clk 0:02:15]} 26. Qd4 {[%clk 0:00:31]}  Qxd4 {[%clk 0:02:15]} 27. Rxd4 {[%clk 0:00:29]}  Bb8 {[%clk 0:02:14]} 28. Rd1 {[%clk 0:00:23]}  h5 {[%clk 0:02:13]} 29. h4 {[%clk 0:00:22]}  Rh6 {[%clk 0:02:12]} 30. g3 {[%clk 0:00:22]}  Ng4 {[%clk 0:02:12]} 31. Kg2 {[%clk 0:00:22]}  Be5 {[%clk 0:02:09]} 32. Bf5 {[%clk 0:00:22]}  Bxc3 {[%clk 0:02:07]} 33. bxc3 {[%clk 0:00:17]}  Rhd6 {[%clk 0:02:06]} 34. Bxg4 {[%clk 0:00:16]}  hxg4 {[%clk 0:02:07]} 35. Re5 {[%clk 0:00:12]}  f6 {[%clk 0:02:06]} 36. Rf5 {[%clk 0:00:11]}  Kf7 {[%clk 0:02:06]} 37. h5 {[%clk 0:00:11]}  g6 {[%clk 0:02:07]} 38. hxg6+ {[%clk 0:00:10]}  Kxg6 {[%clk 0:02:07]} 39. Rf4 {[%clk 0:00:11]}  f5 {[%clk 0:02:08]} 40. Rfd4 {[%clk 0:00:11]}  Re8 {[%clk 0:02:06]} 41. R1d2 {[%clk 0:00:10]}  Kf6 {[%clk 0:02:05]} 42. f3 {[%clk 0:00:10]}  Re3 {[%clk 0:02:05]} 43. fxg4 {[%clk 0:00:10]}  fxg4 {[%clk 0:02:06]} 44. Rf2+ {[%clk 0:00:10]}  Ke5 {[%clk 0:02:06]} 45. Rxg4 {[%clk 0:00:09]}  Rxc3 {[%clk 0:02:06]} 46. Rg5+ {[%clk 0:00:04]}  Kd4 {[%clk 0:02:06]} 47. Rf4+ {[%clk 0:00:03]}  Kc5 {[%clk 0:02:06]} 48. Rf3 {[%clk 0:00:02]}  Rxf3 {[%clk 0:02:05]} 49. Kxf3 {[%clk 0:00:01]}  Rxd5 {[%clk 0:02:06]} 50. Rg6 {[%clk 0:00:01]}  c3 {[%clk 0:02:05]} 0-1


[Site "https://www.chess.com"]

[Event "Titled Tuesday Blitz June 28 Late 2022"]
[White "Ahn, Hongjin"]
[Black "Svicevic, Rastko"]
[WhiteFideId "13201492"]
[BlackFideId "916315"]
[WhiteElo "1873"]
[BlackElo "2049"]
[Result "1-0"]
[Round "02"]
[TimeControl "180+1"]
[Date "2022.06.29"]
[WhiteClock "0:01:33"]
[BlackClock "0:01:09"]

1. e4 {[%clk 0:02:59]}  c6 {[%clk 0:02:59]} 2. Nc3 {[%clk 0:02:57]}  d5 {[%clk 0:03:00]} 3. d3 {[%clk 0:02:56]}  g6 {[%clk 0:02:55]} 4. Nf3 {[%clk 0:02:55]}  Bg7 {[%clk 0:02:56]} 5. g3 {[%clk 0:02:55]}  Nf6 {[%clk 0:02:56]} 6. Qe2 {[%clk 0:02:55]}  O-O {[%clk 0:02:56]} 7. Bg2 {[%clk 0:02:55]}  d4 {[%clk 0:02:56]} 8. Nd1 {[%clk 0:02:55]}  c5 {[%clk 0:02:48]} 9. O-O {[%clk 0:02:54]}  Nc6 {[%clk 0:02:48]} 10. Nh4 {[%clk 0:02:53]}  e5 {[%clk 0:02:46]} 11. f4 {[%clk 0:02:31]}  Ne8 {[%clk 0:02:46]} 12. f5 {[%clk 0:02:30]}  g5 {[%clk 0:02:46]} 13. Nf3 {[%clk 0:02:27]}  f6 {[%clk 0:02:46]} 14. h4 {[%clk 0:02:27]}  h6 {[%clk 0:02:46]} 15. Bh3 {[%clk 0:02:27]}  Bd7 {[%clk 0:02:39]} 16. Bg4 {[%clk 0:02:24]}  b5 {[%clk 0:02:34]} 17. Bh5 {[%clk 0:02:24]}  c4 {[%clk 0:02:28]} 18. Bg6 {[%clk 0:02:20]}  Nd6 {[%clk 0:02:25]} 19. Nh2 {[%clk 0:02:13]}  Ne7 {[%clk 0:02:24]} 20. hxg5 {[%clk 0:02:05]}  hxg5 {[%clk 0:02:23]} 21. Qh5 {[%clk 0:02:05]}  Nxg6 {[%clk 0:02:13]} 22. fxg6 {[%clk 0:02:06]}  Re8 {[%clk 0:02:11]} 23. Bxg5 {[%clk 0:01:59]}  Re6 {[%clk 0:01:42]} 24. Ng4 {[%clk 0:01:46]}  Ne8 {[%clk 0:01:41]} 25. Qh7+ {[%clk 0:01:38]}  Kf8 {[%clk 0:01:41]} 26. Bh6 {[%clk 0:01:38]}  Ke7 {[%clk 0:01:11]} 27. Bxg7 {[%clk 0:01:36]}  Kd6 {[%clk 0:01:11]} 28. Bf8+ {[%clk 0:01:33]}  Kc6 {[%clk 0:01:09]} 29. g7 {[%clk 0:01:33]} 1-0


[Site "https://www.chess.com"]